Cogmind - Beta 14 @@@ ROGUE MODE // 2024.12.03 @ 22:34:05 Player: MarKhan Result: Destroyed by C-35 Carver with Carbide Saw Performance ------------- Evolutions (5) 2500 Regions Visited (12) 2400 Robots Destroyed (0) 0 Value Destroyed (0) 0 Prototype IDs (0) 0 Alien Tech Used (0) 0 Bonus (2815) 2815 TOTAL SCORE: 7715 Bonus ------- Pacifist 1787 Follower Combat Kills 28 Entered Garrisons 200 Entered DSFs 500 Aligned with FarCom 300 Cogmind --------- Core Integrity 0/1000 Matter 300/300 Energy 100/100 System Corruption 0% Temperature Cool (0) Movement Core (50) Location -5/Factory Parts ------- > --- POWER (1) -------- (None) > --- PROPULSION (2) --- (None) > --- UTILITY (2) ------ (None) > --- WEAPON (12) ------ (None) > --- INVENTORY (5) ---- (None) Peak State ------------ None Favorites ----------- Power None Propulsion None Utility None Weapon None Build | -11 -10 -10 -10 -9 -8 -7 -7 -7 -6 -6 -6 -5 ------- Run | Yrd Mat Min Exi Min Mat Fac Low Low Fac DSF Gar Fac Slots Evolved 10 | . . . . . 4 2 . . 2 . . 2 Power . | . . . . . . . . . . . . . Propulsion . | . . . . . . . . . . . . . Utility . | . . . . . . . . . . . . . Weapon 10 | . . . . . 4 2 . . 2 . . 2 Parts Attached . | . . . . . . . . . . . . . Power . | . . . . . . . . . . . . . Engine . | . . . . . . . . . . . . . Core . | . . . . . . . . . . . . . Reactor . | . . . . . . . . . . . . . Propulsion . | . . . . . . . . . . . . . Treads . | . . . . . . . . . . . . . Leg . | . . . . . . . . . . . . . Wheel . | . . . . . . . . . . . . . Hover . | . . . . . . . . . . . . . Flight . | . . . . . . . . . . . . . Utility . | . . . . . . . . . . . . . Device . | . . . . . . . . . . . . . Storage . | . . . . . . . . . . . . . Processor . | . . . . . . . . . . . . . Hackware . | . . . . . . . . . . . . . Protection . | . . . . . . . . . . . . . Artifact . | . . . . . . . . . . . . . Weapon . | . . . . . . . . . . . . . Energy Gun . | . . . . . . . . . . . . . Energy Cannon . | . . . . . . . . . . . . . Ballistic Gun . | . . . . . . . . . . . . . Ballistic Cannon . | . . . . . . . . . . . . . Launcher . | . . . . . . . . . . . . . Special Weapon . | . . . . . . . . . . . . . Impact Weapon . | . . . . . . . . . . . . . Slashing Weapon . | . . . . . . . . . . . . . Piercing Weapon . | . . . . . . . . . . . . . Special Melee Weapon . | . . . . . . . . . . . . . Unidentified Prototypes . | . . . . . . . . . . . . . Parts Lost . | . . . . . . . . . . . . . Power . | . . . . . . . . . . . . . Propulsion . | . . . . . . . . . . . . . Utility . | . . . . . . . . . . . . . Weapon . | . . . . . . . . . . . . . Highest Loss Streak . | . . . . . . . . . . . . . To Critical Strikes . | . . . . . . . . . . . . . Average Slot Usage (%) . | . . . . . . . . . . . . . Peak Build Rating . | . . . . . . . . . . . . . Average Rating . | . . . . . . . . . . . . . On Entrance . | . . . . . . . . . . . . . Naked Turns 1196 | . 32 112 83 231 121 88 149 169 43 28 49 91 Heaviest Build . | . . . . . . . . . . . . . Greatest Support 3 | 3 3 3 3 3 3 3 3 3 3 3 3 3 Greatest Overweight (x) . | . . . . . . . . . . . . . Average Overweight (x) . | . . . . . . . . . . . . . Largest Inventory Capacity 5 | 5 5 5 5 5 5 5 5 5 5 5 5 5 Average Capacity 5 | 5 5 5 5 5 5 5 5 5 5 5 5 5 Most Carried . | . . . . . . . . . . . . . Average Carried . | . . . . . . . . . . . . . Final Capacity 5 | 5 5 5 5 5 5 5 5 5 5 5 5 5 Final Carried . | . . . . . . . . . . . . . Class Distribution -------------------- 100% | Mutant Dominant Class ---------------- Mutant | -10/Materials Mutant | -10/Mines Mutant | -10/Exiles Mutant | -9/Mines Mutant | -8/Materials Mutant | -7/Factory Mutant | -7/Lower Caves Mutant | -7/Lower Caves Mutant | -6/Factory Mutant | -6/DSF Mutant | -6/Garrison Mutant | -5/Factory Resources | -11 -10 -10 -10 -9 -8 -7 -7 -7 -6 -6 -6 -5 ----------- Run | Yrd Mat Min Exi Min Mat Fac Low Low Fac DSF Gar Fac Matter Collected 175 | . . 46 . 129 . . . . . . . . Remotely . | . . . . . . . . . . . . . Salvage Created . | . . . . . . . . . . . . . Parts . | . . . . . . . . . . . . . Haulers Intercepted . | . . . . . . . . . . . . . Recyclers Shooed . | . . . . . . . . . . . . . Parts Field Recycled . | . . . . . . . . . . . . . Retrieved Matter . | . . . . . . . . . . . . . Parts Self-Destructed . | . . . . . . . . . . . . . Prevented . | . . . . . . . . . . . . . Kills | -11 -10 -10 -10 -9 -8 -7 -7 -7 -6 -6 -6 -5 ------- Run | Yrd Mat Min Exi Min Mat Fac Low Low Fac DSF Gar Fac Combat Hostiles Destroyed . | . . . . . . . . . . . . . Classes Destroyed . | . . . . . . . . . . . . . Best Kill Streak . | . . . . . . . . . . . . . Combat Bots Only . | . . . . . . . . . . . . . Max Kills in Single Turn . | . . . . . . . . . . . . . Gunslinging . | . . . . . . . . . . . . . Exploded . | . . . . . . . . . . . . . Melee . | . . . . . . . . . . . . . Uniques/NPCs Destroyed . | . . . . . . . . . . . . . Combat | -11 -10 -10 -10 -9 -8 -7 -7 -7 -6 -6 -6 -5 -------- Run | Yrd Mat Min Exi Min Mat Fac Low Low Fac DSF Gar Fac Hostile Shots Fired 190 | . 9 2 . 7 21 . 31 20 . 33 17 50 Missed 89 | . 2 2 . 3 11 . 18 10 . 15 8 20 Damage Taken 2464 | . 92 5 . 82 174 . 210 156 . 541 191 1013 Core 2464 | . 92 5 . 82 174 . 210 156 . 541 191 1013 Absorbed by Shields 40 | . . . . . . . . . . . . 40 Core Remaining (%) 51 | 100 . . . 28 68 . . 47 . . 13 . Volleys Fired . | . . . . . . . . . . . . . Largest . | . . . . . . . . . . . . . Hottest . | . . . . . . . . . . . . . Shots Fired . | . . . . . . . . . . . . . Gun . | . . . . . . . . . . . . . Cannon . | . . . . . . . . . . . . . Launcher . | . . . . . . . . . . . . . Special . | . . . . . . . . . . . . . Kinetic . | . . . . . . . . . . . . . Thermal . | . . . . . . . . . . . . . Explosive . | . . . . . . . . . . . . . Electromagnetic . | . . . . . . . . . . . . . Robot Hit Streak . | . . . . . . . . . . . . . Robot Miss Streak . | . . . . . . . . . . . . . Penetration Max . | . . . . . . . . . . . . . Secondary Targets . | . . . . . . . . . . . . . Shots Hit Robots . | . . . . . . . . . . . . . Core Hits . | . . . . . . . . . . . . . Critical Kills . | . . . . . . . . . . . . . Critical Parts Destroyed . | . . . . . . . . . . . . . Critical Strikes . | . . . . . . . . . . . . . Melee Attacks . | . . . . . . . . . . . . . Impact . | . . . . . . . . . . . . . Slashing . | . . . . . . . . . . . . . Piercing . | . . . . . . . . . . . . . Sneak Attacks . | . . . . . . . . . . . . . Combat Hostiles . | . . . . . . . . . . . . . Follow-up Attacks . | . . . . . . . . . . . . . Damage Inflicted 82 | . . 10 . 38 22 . . . . . . 12 Guns . | . . . . . . . . . . . . . Cannons . | . . . . . . . . . . . . . Explosions . | . . . . . . . . . . . . . Melee . | . . . . . . . . . . . . . Ramming 82 | . . 10 . 38 22 . . . . . . 12 Kinetic . | . . . . . . . . . . . . . Thermal . | . . . . . . . . . . . . . Explosive . | . . . . . . . . . . . . . Electromagnetic . | . . . . . . . . . . . . . Impact . | . . . . . . . . . . . . . Slashing . | . . . . . . . . . . . . . Piercing . | . . . . . . . . . . . . . Highest Corruption . | . . . . . . . . . . . . . Average Corruption . | . . . . . . . . . . . . . Corruption Purged . | . . . . . . . . . . . . . Corruption Blocked . | . . . . . . . . . . . . . Overload Shots . | . . . . . . . . . . . . . Overflow Damage . | . . . . . . . . . . . . . Projectiles . | . . . . . . . . . . . . . Explosions . | . . . . . . . . . . . . . Melee . | . . . . . . . . . . . . . Knockbacks . | . . . . . . . . . . . . . Impact . | . . . . . . . . . . . . . Kinetic . | . . . . . . . . . . . . . Secondary . | . . . . . . . . . . . . . Self-Inflicted Damage 44 | . . 5 . 16 11 . . . . . . 12 Shots . | . . . . . . . . . . . . . Rammed 13 | . . 2 . 9 2 . . . . . . . Targets Rammed 13 | . . 2 . 9 2 . . . . . . . Kicked . | . . . . . . . . . . . . . Crushed . | . . . . . . . . . . . . . Highest Temperature . | . . . . . . . . . . . . . Average Temperature . | . . . . . . . . . . . . . Received Heat Transfer 237 | . 54 . . 18 72 . 18 9 . 6 60 . Siege Activations . | . . . . . . . . . . . . . Robots Corrupted . | . . . . . . . . . . . . . Combat Hostiles . | . . . . . . . . . . . . . Parts Fried . | . . . . . . . . . . . . . Impact Corruptions . | . . . . . . . . . . . . . Robots Melted . | . . . . . . . . . . . . . Combat Hostiles . | . . . . . . . . . . . . . Parts Melted . | . . . . . . . . . . . . . Heat Transferred . | . . . . . . . . . . . . . Parts Sabotaged . | . . . . . . . . . . . . . Parts Stolen . | . . . . . . . . . . . . . Parts Stripped . | . . . . . . . . . . . . . Power Chain Reactions . | . . . . . . . . . . . . . Alert | -11 -10 -10 -10 -9 -8 -7 -7 -7 -6 -6 -6 -5 ------- Run | Yrd Mat Min Exi Min Mat Fac Low Low Fac DSF Gar Fac Peak Influence 118 | . 20 37 . 91 112 65 . . 118 82 76 103 Initial 118 | . . 7 . . 31 46 . . 118 82 61 55 Average 63 | . 7 15 . 69 82 53 . . 118 82 70 78 Maximum Alert Level . | . . . . . . . . . . . . . Low Security (%) 100 | 100 100 100 . 100 100 100 . . 100 100 100 100 Level 1 . | . . . . . . . . . . . . . Level 2 . | . . . . . . . . . . . . . Level 3 . | . . . . . . . . . . . . . Level 4 . | . . . . . . . . . . . . . Level 5 . | . . . . . . . . . . . . . High Security . | . . . . . . . . . . . . . Max Security . | . . . . . . . . . . . . . Squads Dispatched 9 | . 1 . . . 1 2 . . . 1 . 4 Investigation 5 | . . . . . 1 2 . . . . . 2 Extermination . | . . . . . . . . . . . . . Reinforcement 4 | . 1 . . . . . . . . 1 . 2 Assault . | . . . . . . . . . . . . . Garrison . | . . . . . . . . . . . . . Intercept . | . . . . . . . . . . . . . Searches Triggered . | . . . . . . . . . . . . . Construction Impeded . | . . . . . . . . . . . . . Haulers Reinforced . | . . . . . . . . . . . . . Active Scanning Responses . | . . . . . . . . . . . . . Cargo Convoy Interrupts . | . . . . . . . . . . . . . Stealth | -11 -10 -10 -10 -9 -8 -7 -7 -7 -6 -6 -6 -5 --------- Run | Yrd Mat Min Exi Min Mat Fac Low Low Fac DSF Gar Fac Distress Signals 3 | . 1 . . . 1 . . . . . . 1 Communications Jammed . | . . . . . . . . . . . . . Distress Signals . | . . . . . . . . . . . . . Times Spotted 58 | . 4 2 . 5 7 . 4 8 . 6 5 17 Peak Tracking Total 19 | . 4 2 . 4 5 . 4 4 . 6 8 19 Tactical Retreats 12 | . . 1 . 1 . . 3 4 . . 1 2 Traps | -11 -10 -10 -10 -9 -8 -7 -7 -7 -6 -6 -6 -5 ------- Run | Yrd Mat Min Exi Min Mat Fac Low Low Fac DSF Gar Fac Traps Triggered 3 | . . . . . 1 . . . . . . 2 Indirectly . | . . . . . . . . . . . . . Trap Hack Attempts . | . . . . . . . . . . . . . Triggered . | . . . . . . . . . . . . . Disarmed . | . . . . . . . . . . . . . Reprogrammed . | . . . . . . . . . . . . . Reused . | . . . . . . . . . . . . . Traps Extracted . | . . . . . . . . . . . . . Installed . | . . . . . . . . . . . . . Triggered . | . . . . . . . . . . . . . Machines | -11 -10 -10 -10 -9 -8 -7 -7 -7 -6 -6 -6 -5 ---------- Run | Yrd Mat Min Exi Min Mat Fac Low Low Fac DSF Gar Fac Machines Disabled . | . . . . . . . . . . . . . Max in Single Turn . | . . . . . . . . . . . . . Machines Repaired . | . . . . . . . . . . . . . Machines Dismantled . | . . . . . . . . . . . . . Machines Sabotaged . | . . . . . . . . . . . . . Overloaded Fab Kills . | . . . . . . . . . . . . . Hacking | -11 -10 -10 -10 -9 -8 -7 -7 -7 -6 -6 -6 -5 --------- Run | Yrd Mat Min Exi Min Mat Fac Low Low Fac DSF Gar Fac Machines Accessed 11 | . 1 . 1 1 2 2 . 1 1 . . 2 Terminals 8 | . 1 . . 1 2 2 . . 1 . . 1 Fabricators 1 | . . . . . . . . . . . . 1 Repair Stations . | . . . . . . . . . . . . . Recycling Units . | . . . . . . . . . . . . . Scanalyzers . | . . . . . . . . . . . . . Garrison Access . | . . . . . . . . . . . . . Total Hacks 24 | . 5 . 1 2 4 6 . 1 1 . . 4 Successful 9 | . 1 . 1 1 1 2 . 1 1 . . 1 Failed 15 | . 4 . . 1 3 4 . . . . . 3 Catastrophic 4 | . 1 . . 1 2 . . . . . . . Database Lockouts . | . . . . . . . . . . . . . Manual 14 | . 2 . . . 4 5 . . . . . 3 Terminals 19 | . 5 . . 2 4 6 . . 1 . . 1 Fabricators 3 | . . . . . . . . . . . . 3 Repair Stations . | . . . . . . . . . . . . . Recycling Units . | . . . . . . . . . . . . . Scanalyzers . | . . . . . . . . . . . . . Garrison Access . | . . . . . . . . . . . . . Terminal Hacks 7 | . 1 . 1 1 . 1 . 1 1 . . 1 Record 1 | . . . 1 . . . . . . . . . Open Door 1 | . . . . . . . . 1 . . . . Open DSF 1 | . . . . . . . . . 1 . . . Level Access Points 2 | . . . . 1 . . . . . . . 1 Zone Layout 2 | . 1 . . . . 1 . . . . . . Fabricator Hacks . | . . . . . . . . . . . . . Repair Station Hacks . | . . . . . . . . . . . . . Recycling Unit Hacks . | . . . . . . . . . . . . . Scanalyzer . | . . . . . . . . . . . . . Garrison Access Hacks . | . . . . . . . . . . . . . Unauthorized Hacks 2 | . . . . . 1 1 . . . . . . Terminals 2 | . . . . . 1 1 . . . . . . Assimilate 1 | . . . . . 1 . . . . . . . Botnet 1 | . . . . . . 1 . . . . . . Fabricators . | . . . . . . . . . . . . . Repair Stations . | . . . . . . . . . . . . . Recycling Units . | . . . . . . . . . . . . . Scanalyzers . | . . . . . . . . . . . . . Garrison Access . | . . . . . . . . . . . . . Data Cores Recovered . | . . . . . . . . . . . . . Used . | . . . . . . . . . . . . . Hacking Detections 7 | . 1 . . 1 2 2 . . . . . 1 Full Trace Events 4 | . . . . 1 . 2 . . . . . 1 Feedback Events . | . . . . . . . . . . . . . Feedback Blocked . | . . . . . . . . . . . . . Robot Schematics Acquired . | . . . . . . . . . . . . . Robots Built . | . . . . . . . . . . . . . Authchips . | . . . . . . . . . . . . . Time . | . . . . . . . . . . . . . Total Robot Build Rating . | . . . . . . . . . . . . . Part Schematics Acquired . | . . . . . . . . . . . . . Parts Built . | . . . . . . . . . . . . . Authchips . | . . . . . . . . . . . . . Time . | . . . . . . . . . . . . . Total Part Build Rating . | . . . . . . . . . . . . . Parts Repaired . | . . . . . . . . . . . . . Time . | . . . . . . . . . . . . . Parts Recycled . | . . . . . . . . . . . . . Recycled Matter . | . . . . . . . . . . . . . Retrieved Matter . | . . . . . . . . . . . . . Retrieved Components . | . . . . . . . . . . . . . Parts Scanalyzed . | . . . . . . . . . . . . . Part Schematics Acquired . | . . . . . . . . . . . . . Parts Damaged . | . . . . . . . . . . . . . Bothacking | -11 -10 -10 -10 -9 -8 -7 -7 -7 -6 -6 -6 -5 ------------ Run | Yrd Mat Min Exi Min Mat Fac Low Low Fac DSF Gar Fac Used RIF Installer . | . . . . . . . . . . . . . Robots Hacked . | . . . . . . . . . . . . . Non-combat . | . . . . . . . . . . . . . Combat . | . . . . . . . . . . . . . Robot Hacks Applied . | . . . . . . . . . . . . . Relay Couplers Released . | . . . . . . . . . . . . . Fabnet Peak Effective % . | . . . . . . . . . . . . . Robots Rewired . | . . . . . . . . . . . . . Allies Hacked . | . . . . . . . . . . . . . Hacks Repelled . | . . . . . . . . . . . . . Allies | -11 -10 -10 -10 -9 -8 -7 -7 -7 -6 -6 -6 -5 -------- Run | Yrd Mat Min Exi Min Mat Fac Low Low Fac DSF Gar Fac Total Allies 4 | . . . . 3 1 . . . . . . . Largest Group 3 | . . . . 3 1 . . . . . . . Highest-Rated Group 40 | . . . . 40 10 . . . . . . . Highest-Rated Ally 16 | . . . . 16 10 . . . . . . . Total Orders . | . . . . . . . . . . . . . Ally Attacks 15 | . . . . 15 . . . . . . . . Total Damage 122 | . . . . 122 . . . . . . . . Kills 4 | . . . . 4 . . . . . . . . Allies Corrupted . | . . . . . . . . . . . . . Allies Melted . | . . . . . . . . . . . . . Intel | -11 -10 -10 -10 -9 -8 -7 -7 -7 -6 -6 -6 -5 ------- Run | Yrd Mat Min Exi Min Mat Fac Low Low Fac DSF Gar Fac Robot Analysis Total . | . . . . . . . . . . . . . Derelict Logs Recovered 4 | . . . . 1 . . 2 1 . . . . Drone Launches . | . . . . . . . . . . . . . Drone Recoveries . | . . . . . . . . . . . . . Exploration | -11 -10 -10 -10 -9 -8 -7 -7 -7 -6 -6 -6 -5 ------------- Run | Yrd Mat Min Exi Min Mat Fac Low Low Fac DSF Gar Fac Turns Passed 1205 | 9 32 112 83 231 121 88 149 169 43 28 49 91 Spaces Moved 2326 | 18 64 220 165 433 221 176 297 329 85 56 98 164 Core 2326 | 18 64 220 165 433 221 176 297 329 85 56 98 164 Treads . | . . . . . . . . . . . . . Legs . | . . . . . . . . . . . . . Wheels . | . . . . . . . . . . . . . Hover . | . . . . . . . . . . . . . Flight . | . . . . . . . . . . . . . Fastest Speed 50 | 50 50 50 50 50 50 50 50 50 50 50 50 50 Average Speed 50 | 50 50 50 50 50 50 50 50 50 50 50 50 50 Slowest Speed 50 | 50 50 50 50 50 50 50 50 50 50 50 50 50 Overloaded Moves . | . . . . . . . . . . . . . Propulsion Burnouts . | . . . . . . . . . . . . . Robots Hopped . | . . . . . . . . . . . . . Cave-ins Triggered . | . . . . . . . . . . . . . Exploration Rate (%) 34 | 3 21 64 55 65 22 8 48 50 2 78 22 7 Regions Visited 12 Branch Regions 5 Pre-discovered Areas 2 | . . . 1 . . . 1 . . . . . Known Exits Taken 2 | . . . . 1 . . . . 1 . . . Unknown Exits Taken 8 | 1 1 1 1 . 1 1 1 1 . . . . Scrap Searched 3 | . . 1 . . . . 1 1 . . . . Spaces Dug . | . . . . . . . . . . . . . Terrain Destroyed . | . . . . . . . . . . . . . Melee . | . . . . . . . . . . . . . Projectile . | . . . . . . . . . . . . . AOE . | . . . . . . . . . . . . . Terrain Rammed 1 | . . . . . . . . . . . . 1 Walls Destroyed . | . . . . . . . . . . . . . Machines Disabled . | . . . . . . . . . . . . . Actions | -11 -10 -10 -10 -9 -8 -7 -7 -7 -6 -6 -6 -5 --------- Run | Yrd Mat Min Exi Min Mat Fac Low Low Fac DSF Gar Fac Total 2353 | 17 63 221 164 446 230 175 296 332 84 55 97 173 Wait 13 | . . . . 5 8 . . . . . . . Move 2314 | 17 63 219 164 432 220 175 296 328 84 55 97 164 Hop . | . . . . . . . . . . . . . Pick Up . | . . . . . . . . . . . . . Fast Attach . | . . . . . . . . . . . . . Attach . | . . . . . . . . . . . . . Detach . | . . . . . . . . . . . . . Swap . | . . . . . . . . . . . . . Drop . | . . . . . . . . . . . . . Fire . | . . . . . . . . . . . . . Melee . | . . . . . . . . . . . . . Ram 14 | . . 2 . 9 2 . . . . . . 1 Kick . | . . . . . . . . . . . . . Crush . | . . . . . . . . . . . . . Escape Stasis 8 | . . . . . . . . . . . . 8 Rewire 4 | . . . . . . . . 4 . . . . Trap . | . . . . . . . . . . . . . Miscellaneous . | . . . . . . . . . . . . . Route ------- -11/Scrapyard -10/Materials -10/Mines (discovered 2 exits: [*Mat] / *Exi) -10/Exiles -9/Mines (discovered 2 exits: *Mat x2) -8/Materials -7/Factory -7/Lower Caves -7/Lower Caves -6/Factory (discovered 2 exits: Low / DSF) -6/DSF -6/Garrison -5/Factory (discovered 4 exits: Fac x4) History --------- Turn | Location | Event 3 | -11/Scrapyard | Discovered new exit (range 14) 10 | -11/Scrapyard | Entered Materials 35 | -10/Materials | Discovered new exit (range 16) 42 | -10/Materials | Entered Mines 54 | -10/Mines | Discovered new exit (range 8) 63 | -10/Mines | Met a Derelict bent on vengeance 75 | -10/Mines | Assembled infested the area 152 | -10/Mines | Discovered new exit (range 5) 154 | -10/Mines | Entered Exiles 167 | -10/Exiles | Met 8R-AWN 176 | -10/Exiles | Met EX-HEX 189 | -10/Exiles | Met EX-BIN 196 | -10/Exiles | Aligned with FarCom system 196 | -10/Exiles | Given EX-Vault access code 211 | -10/Exiles | Met EX-DEC 215 | -10/Exiles | Learned location of Zion (-7) 230 | -10/Exiles | Discovered new exit (range 12) 237 | -10/Exiles | Entered Mines 245 | -9/Mines | Assisted by bots powering up and referring to "LRC-V3" 249 | -9/Mines | Learned Materials stockpile data 305 | -9/Mines | Build established: Mutant 422 | -9/Mines | Identified exit to Materials 461 | -9/Mines | Core integrity fell below 50% 468 | -9/Mines | Entered Materials 468 | -8/Materials | Evolved 4 slots: Weapon x4 582 | -8/Materials | Discovered new exit (range 12) 589 | -8/Materials | Entered Factory 589 | -7/Factory | Evolved 2 slots: Weapon x2 667 | -7/Factory | Discovered new exit (range 9) 677 | -7/Factory | Entered Lower Caves 679 | -7/Lower Caves | Attracted the attention of an 0b10 checkpoint 681 | -7/Lower Caves | Spotted B-75 Beast 752 | -7/Lower Caves | Learned 8 Factory zone layouts 755 | -7/Lower Caves | Learned location of Extension (-4) 819 | -7/Lower Caves | Discovered new exit (range 14) 826 | -7/Lower Caves | Entered another Lower Caves area 834 | -7/Lower Caves | Learned 4 Factory zone layouts 903 | -7/Lower Caves | Core integrity fell below 50% 988 | -7/Lower Caves | Discovered new exit (range 15) 995 | -7/Lower Caves | Entered Factory 995 | -6/Factory | Evolved 2 slots: Weapon x2 996 | -6/Factory | Identified exit to Lower Caves 1037 | -6/Factory | Identified exit to DSF 1038 | -6/Factory | Entered DSF 1055 | -6/DSF | Additional patrols routed to DSF 1057 | -6/DSF | Core integrity fell below 50% 1059 | -6/DSF | Discovered new exit (range 15) 1066 | -6/DSF | Entered Garrison 1083 | -6/Garrison | Spotted B-75 Beast 1093 | -6/Garrison | Triggered checkpoint 1097 | -6/Garrison | Core integrity fell below 20% 1111 | -6/Garrison | Discovered new exit (range 9) 1115 | -6/Garrison | Entered Factory 1115 | -5/Factory | Evolved 2 slots: Weapon x2 1119 | -5/Factory | Identified exit to Factory 1174 | -5/Factory | Core integrity fell below 50% 1196 | -5/Factory | Core integrity fell below 20% 1206 | -5/Factory | Destroyed by C-35 Carver with Carbide Saw Last Messages --------------- 01184_ K-01 Serf pushes I-47 Archangel. 01187_ O-16 Technician: "IFF HANDSHAKE FAILED. SECURING TERMINAL." 01189_ O-16 Technician sends out distress signal. 01193_ Connecting with Fabricator... 01193_ ALERT: Suspicious activity at Fabricator F003. Dispatching Investigation squad. 01195_ Triggered Alarm Trap. 01195_ An alarm sounds. 01195_ ALERT: Alarm triggered, dispatching investigation squad. 01195_ ALERT: Hostiles spotted, dispatching reinforcements to Terminal F004. 01196_ K-01 Serf cleans the Construction Platform. 01197_ ALERT: Suspicious intruders detected, dispatching Cutter reinforcements to area. 01206_ Slammed into Fusion Modulator. 01206_ Destabilizing: Core damaged (-40). Map ----- +----------------------------------------------------+ | ?????????????????????????????????????????????????? | | ?????????????????????????????????????????????????? | | ?????????????????????????????????????????????????? | | ?????????????????????????????????????????????????? | | ?????????????????????????????????????????????????? | | ???????????????????????????????? ???? ????????? | | ??????????????????????????????## ??? ??????? | | ??????????????????????????????# ?? #?????? | | ??????????????????????????????# ?? #?????? | | ??????????????????????????????# ?? +?????? | | ??????????????????????????????+ ?? #?????? | | ??????????????????????????????# ?? #?????? | | ??????????????????????????????# ""?" #?????? | | ??????????????????????????????# """" #?????? | | ??????????????????????????????# """" #?????? | | ??????????????????????????????# """" #???#+# | | ??????????????????????????????# """" #???# | | ????????????????????########### """" #???# | | ????????????????????# ! #s """" #???# | | ????????????????????# ] ! # s #???# | | ????????????????????# # s"""" ##### | | ????????????????????# # s """" | | ????????????????????# #ss """" | | ????????????????????# """ """s# """" = | | ????????????????????# """c""" sgc """" | | ????????????????????# """@""" #g """" | | ????????????????????########### gg"""" "" "" " | | ??????????????????????????????#g ss "F "" " | | ???????????????????????????g?? gg """"" " | | ????????????????????????????? | | ????????????????????????cH??? g | | ????????????????????????????? ####### | | ????????????????????????????? #?????? | | ?????????????????????????????###########+###?????? | | ?????????????????????????????????????????????????? | | ?????????????????????????????????????????????????? | | ?????????????????????????????????????????????????? | | ?????????????????????????????????????????????????? | | ?????????????????????????????????????????????????? | | ?????????????????????????????????????????????????? | | ?????????????????????????????????????????????????? | | | | | | | | | | | | | | | | | | | +----------------------------------------------------+ Best States ------------- Heat Dissipation 40 Energy Generation 5 Energy Capacity 100 Matter Stores 300 Matter Capacity 300 Sight Range 16 Terrain Scan Density 10 Evasion (%) 50 Item Schematics ----------------- None Robot Schematics ------------------ None Fabricated ------------ Nothing Alien Tech Used ----------------- None Achievements -------------- None Challenges ------------ None Game ------ Seed MyomerTechReplica Manual? 0 Play Time 00:15:58 Cumulative 165.6 hours Start 2024.12.03 @ 22:19:54 End 2024.12.03 @ 22:34:05 Sessions 1 Manual Loads 0 Difficulty Rogue Special Mode None Game No. 179 Rogue 179 Adventurer 0 Explorer 0 Win Type - Total 3 Types 3/0/0/0/0/0/0/0/0 Lore% 63 Gallery% 59 Achievement% 57 Wizard Run 0 Options --------- Layout 1 ASCII 0 Keyboard 1 Movement Arrows Keybinds 0 Fullscreen 0 Font 20/Smallcaps Map View 50x35 Zoom Use 0% Tactical HUD 1 Map Filters NONE Filters NONE Steam 1 RUN: 00bdaa4a-88d0-456f-bda4-82738bd01d37